bitfinex-derivatives/quotes_ETHF0:USTF0_20250903
["timestamp","ask_amount","ask_price","bid_price","bid_amount"]
[1756902028606,0.247,4371.1,4370.6,0.3353]
[1756902028814,32.979,4371.2,4370.5,0.1347]
[1756902029015,32.979,4371.2,4370.6,0.3353]
[1756902029215,32.979,4371.2,4370.5,0.3591]
[1756902029416,0.247,4371.1,4370.6,0.3353]
[1756902030015,0.247,4371.1,4370.5,0.1347]
[1756902030219,0.247,4371.1,4370.6,0.3353]
[1756902030419,0.247,4371.1,4370.5,0.1347]
[1756902030915,32.979,4371.2,4370.6,0.5597]
[1756902031108,0.247,4371.0,4370.6,0.3353]
[1756902031310,0.247,4371.0,4370.5,0.1347]
[1756902031706,0.247,4371.0,4370.5,0.3591]
[1756902031920,0.247,4371.0,4370.6,0.3353]
[1756902032419,0.247,4371.0,4370.5,0.3591]
[1756902032615,0.247,4371.0,4370.5,0.1347]
[1756902032812,0.247,4371.0,4370.6,0.3353]
[1756902033425,0.247,4371.0,4370.5,0.3591]
[1756902033719,0.247,4371.0,4370.6,0.3353]
[1756902033916,0.246,4370.9,4370.5,0.3591]
[1756902034423,32.979,4371.2,4370.6,0.5597]
[1756902034922,32.979,4371.2,4371.0,0.1347]
[1756902035619,0.246,4371.1,4371.0,0.1347]
[1756902035820,0.246,4371.1,4371.0,0.47]
[1756902035821,0.80462702,4371.1,4371.0,0.47]
[1756902036819,0.80462702,4371.1,4370.5,0.1347]
[1756902037123,0.55862702,4371.0,4370.6,0.3353]
[1756902037319,0.55862702,4370.9,4370.6,0.3353]
[1756902037624,0.55862702,4370.8,4370.7,0.3353]
[1756902038223,4.55862702,4370.8,4370.0,0.1347]
[1756902038424,0.80462702,4370.7,4370.0,0.1347]
[1756902038627,1.07581195,4370.4,4370.0,0.1347]
[1756902038826,0.80462702,4370.3,4370.0,0.47]
[1756902039125,0.55862702,4370.2,4370.0,0.47]
[1756902039323,0.55862702,4370.1,4370.0,0.47]
[1756902041022,0.55862702,4370.1,4370.0,0.6944]
[1756902041327,0.80362702,4370.1,4370.0,1.98691195]
[1756902041826,0.245,4370.1,4370.0,6.21578195]
[1756902042125,0.245,4370.1,4370.0,2.21578195]
[1756902043026,32.979,4371.2,4370.1,0.3147]
[1756902043228,0.80332192,4371.1,4371.0,0.4437]
[1756902043923,0.80332192,4371.1,4370.5,0.129]
[1756902044123,0.55832192,4371.0,4370.5,0.129]
[1756902044518,0.55832192,4371.0,4370.5,0.3401]
[1756902044718,0.55832192,4371.0,4370.6,0.3147]
[1756902045229,0.55832192,4371.0,4370.5,0.129]
[1756902045531,0.55832192,4371.0,4370.6,0.3147]
[1756902045717,0.55832192,4371.0,4370.5,0.3401]
[1756902046028,0.55832192,4371.0,4370.6,0.3147]
[1756902046227,0.55832192,4371.0,4370.5,0.3401]
[1756902046428,0.55832192,4371.0,4370.6,0.5258]
[1756902046624,0.55832192,4371.0,4370.7,0.3147]
[1756902046825,0.55832192,4371.0,4370.8,0.5258]
[1756902047025,1.07581195,4370.9,4370.6,0.3147]
[1756902047323,1.07581195,4370.7,4370.0,0.1347]
[1756902047523,1.07581195,4370.7,4369.0,0.129]
[1756902047524,0.3728,4369.6,4369.0,0.082]
[1756902047734,0.142,4369.1,4369.0,0.5144]
[1756902047926,0.368,4369.1,4369.0,0.8291]
[1756902048125,0.51,4369.1,4369.0,0.8291]
[1756902048329,0.5988,4369.1,4369.0,0.3147]
[1756902048625,1.15772491,4369.1,4369.0,0.3147]
[1756902049129,1.15772491,4369.1,4369.0,0.4437]
[1756902049332,1.08792491,4369.1,4369.0,1.09070526]
[1756902050832,0.84292491,4369.1,4369.0,1.09070526]
[1756902051128,1.08692491,4369.1,4369.0,1.09070526]
[1756902051330,1.08692491,4369.1,4369.0,1.31957526]
[1756902051527,0.94492491,4369.1,4369.0,1.31959312]
[1756902052429,1.08692491,4369.1,4369.0,1.31959312]
[1756902052830,1.08692491,4369.1,4369.0,1.09072312]
[1756902053033,1.08692491,4369.1,4369.0,1.31959312]
[1756902053229,1.17572491,4369.1,4369.0,0.65832312]
[1756902053732,1.17571752,4369.1,4369.0,0.65832312]
[1756902054035,1.08691752,4369.1,4369.0,0.86942312]
[1756902054828,1.08691752,4369.1,4369.0,0.6548]
[1756902055024,0.94491752,4369.1,4369.0,0.6548]
[1756902055227,0.33091752,4369.1,4369.0,0.6548]
[1756902056030,0.33091752,4369.1,4369.0,0.8761]
[1756902059835,0.28391752,4369.1,4369.0,1.31932549]
[1756902060135,0.27791752,4369.1,4369.0,1.31932549]
[1756902060333,0.08691752,4369.1,4369.0,1.31932549]
[1756902060533,0.88054924,4370.0,4369.0,5.31932549]
[1756902060737,0.116,4369.2,4369.1,0.96145549]
[1756902060935,0.88054924,4370.0,4369.6,0.22887]
[1756902061130,0.243,4369.9,4369.8,0.7471]
[1756902061328,1.31172885,4370.7,4369.8,0.4324]
[1756902061529,0.089,4370.7,4370.6,0.3147]
[1756902061837,1.21254924,4370.7,4370.6,0.3147]
[1756902062023,1.21254924,4370.7,4370.6,0.5258]
[1756902062533,0.96954924,4370.7,4370.6,0.5258]
[1756902062723,1.21254924,4370.7,4370.6,0.5258]
[1756902062929,0.332,4370.7,4370.6,0.7471]
[1756902063125,0.089,4370.7,4370.6,0.7471]
[1756902063326,0.332,4370.7,4370.6,0.3147]
[1756902063529,4.332,4370.7,4370.3,0.3147]
[1756902063726,0.1195,4370.1,4369.5,0.129]
[1756902063931,0.3822,4369.6,4369.5,0.3401]
[1756902064537,0.3822,4369.6,4369.5,0.79027]
[1756902064538,0.4341,4369.6,4369.5,0.79027]
[1756902065730,0.4341,4369.6,4369.5,1.10497]
[1756902066728,0.243,4369.6,4369.5,1.10497]
[1756902066928,0.88054924,4370.0,4369.6,0.3147]
[1756902067135,1.26274924,4370.4,4370.3,0.2111]
[1756902067335,2.06222237,4370.4,4370.3,0.5258]
[1756902067530,2.18172237,4370.4,4370.3,0.5258]
[1756902069139,2.18172237,4370.4,4370.3,0.3147]
[1756902071247,2.06222237,4370.4,4370.3,0.7471]
[1756902071540,1.81922237,4370.4,4370.3,0.7471]
[1756902071748,2.06122237,4370.4,4370.3,0.7471]
[1756902075632,2.18372237,4370.4,4370.3,0.5258]
[1756902076136,1.94172237,4370.4,4370.3,0.5258]
[1756902076346,3.40645122,4370.4,4370.3,0.5258]
[1756902076840,2.18372237,4370.4,4370.3,0.5258]
[1756902077235,3.40645122,4370.4,4370.3,0.5258]
[1756902078541,1.77920198,4370.4,4370.3,0.7581]
[1756902078841,1.18947313,4370.4,4370.3,0.7581]
[1756902080833,1.18947313,4370.4,4370.3,0.5258]
[1756902081043,1.31197313,4370.4,4370.3,0.5258]
[1756902084441,1.18947313,4370.4,4370.3,0.5258]
[1756902084844,1.31197313,4370.4,4370.3,0.5258]
[1756902087941,1.18947313,4370.4,4370.3,0.5258]
[1756902088142,2.41220198,4370.4,4370.3,0.5258]
[1756902088543,2.41220198,4370.4,4370.3,0.7581]
[1756902089644,1.18947313,4370.4,4370.3,0.7581]
[1756902090345,0.75247313,4370.4,4370.3,0.7581]
[1756902090549,0.79647313,4370.4,4370.3,0.7581]
[1756902091047,1.18847313,4370.4,4370.3,0.7581]
[1756902091945,2.06902237,4370.4,4370.3,0.7581]
[1756902092349,0.392,4369.7,4369.6,0.3419]
[1756902092548,2.06902237,4369.7,4369.6,0.5535]
[1756902092745,2.06902237,4369.7,4369.6,0.7858]
[1756902093337,1.18847313,4369.7,4369.6,0.7858]
[1756902094750,0.99247313,4369.7,4369.6,0.7858]
[1756902096345,1.18847313,4369.7,4369.6,0.7858]
[1756902096544,0.94847313,4369.7,4369.6,0.7858]
[1756902096744,1.18847313,4369.7,4369.6,0.7858]
[1756902098948,1.18847313,4369.7,4368.5,0.129]
[1756902098949,0.392,4369.1,4369.0,0.3406]
[1756902099151,0.99247313,4369.1,4369.0,0.9148]
[1756902099354,0.79647313,4369.1,4369.0,1.14367]
[1756902099650,1.22272885,4370.4,4370.0,0.1337]
[1756902099850,0.4504,4370.3,4370.2,0.7858]
[1756902100352,0.4504,4370.3,4370.2,1.01467]
[1756902102950,1.09704924,4370.6,4370.5,0.1329]
[1756902103253,1.88994924,4370.6,4370.5,0.872]
[1756902104251,1.55954924,4370.6,4370.5,0.872]
[1756902104948,1.88994924,4370.6,4370.5,0.872]
[1756902106646,0.239,4370.6,4370.5,1.10087]
[1756902111355,0.089,4370.7,4370.6,0.7391]
[1756902111554,0.88376169,4370.7,4370.6,0.96797]
[1756902111756,0.88376169,4370.7,4370.6,0.7391]
[1756902112056,0.64476169,4370.7,4370.6,0.7391]
[1756902112251,0.88376169,4370.7,4370.6,0.7391]
[1756902113856,0.64476169,4370.7,4370.6,0.7391]
[1756902114057,0.88276169,4370.7,4370.6,0.7391]
[1756902114254,0.88276169,4370.7,4370.6,1.61964924]
[1756902114951,0.88276169,4370.7,4370.6,0.7391]
[1756902116657,0.64476169,4370.7,4370.6,0.7391]
[1756902116857,0.88276169,4370.7,4370.6,0.7391]
[1756902120363,1.65316169,4370.7,4370.6,0.7391]
[1756902121246,1.08476169,4370.7,4370.6,0.7391]
[1756902121453,1.09926169,4370.7,4370.6,0.7391]
[1756902121659,0.88276169,4370.7,4370.6,0.7391]
[1756902121854,0.64476169,4370.7,4370.6,0.7391]
[1756902122553,0.7704,4371.9,4371.8,0.5299]
[1756902122753,1.0084,4371.9,4371.8,0.5299]
[1756902123255,0.7704,4371.9,4371.8,0.7391]
[1756902123463,0.4545,4371.9,4371.8,0.7391]
[1756902126160,0.1163,4372.5,4371.8,0.7391]
[1756902126161,1.22272885,4372.6,4371.8,0.4214]
[1756902126454,0.7704,4372.3,4372.2,0.96797]
[1756902126759,0.678,4372.3,4372.2,0.96797]
[1756902127351,0.44,4372.3,4372.2,0.96797]
[1756902127859,0.238,4372.3,4372.2,0.96797]
[1756902128259,2.29738549,4372.9,4372.3,0.3177]
[1756902128555,2.29738549,4372.9,4372.4,0.96797]
[1756902128556,0.2165,4372.5,4372.4,0.96797]
[1756902128758,0.2165,4372.8,4372.7,0.7391]
[1756902129064,33.407,4373.1,4373.0,0.872]
[1756902129257,33.9744,4373.1,4373.0,0.872]
[1756902133656,33.644,4373.1,4373.0,1.10087]
[1756902134057,33.9551,4373.1,4373.0,1.10087]
[1756902134656,34.50592523,4373.1,4373.0,1.10087]
[1756902135057,34.50592523,4373.1,4373.0,0.96797]
[1756902138666,33.97132523,4373.1,4373.0,1.09317]
[1756902140669,33.73432523,4373.1,4373.0,1.09317]
[1756902140962,33.97132523,4373.1,4373.0,1.09317]
[1756902141163,33.73432523,4373.1,4373.0,1.09317]
[1756902141363,33.97132523,4373.1,4373.0,1.09317]
[1756902141567,34.28242523,4373.1,4373.0,1.09317]
[1756902142068,33.97132523,4373.1,4373.0,1.09317]
[1756902142659,33.97132523,4373.1,4373.0,0.8643]
[1756902142858,33.73432523,4373.1,4373.0,0.8643]
[1756902143070,33.97132523,4373.1,4373.0,1.09317]
[1756902143467,33.97032523,4373.1,4373.0,1.09317]
[1756902143669,34.50002523,4373.1,4373.0,1.09317]
[1756902147272,34.26402523,4373.1,4373.0,1.09317]
[1756902147473,34.50002523,4373.1,4373.0,1.09317]
[1756902148676,34.50002523,4373.1,4373.0,0.96797]
[1756902148880,0.1092,4373.0,4372.6,0.3162]
[1756902149078,0.7457,4372.3,4372.2,0.3162]
[1756902149278,1.53095176,4372.3,4372.2,0.3162]
[1756902149572,1.53095176,4372.3,4372.2,0.22887]
[1756902150281,1.53095176,4372.3,4371.6,0.3162]
[1756902150481,1.29495176,4372.2,4372.1,0.22887]
[1756902150876,1.29495176,4372.2,4371.4,1.07465664]
[1756902151080,0.236,4372.3,4371.0,0.1252]
[1756902151081,1.53095176,4372.1,4372.0,0.5281]
[1756902151681,1.53095176,4372.1,4372.0,0.75697]
[1756902152176,1.53095176,4372.1,4372.0,0.22887]
[1756902152476,1.53095176,4372.1,4371.1,0.7453]
[1756902152477,0.7457,4371.2,4371.1,0.7453]
[1756902152682,1.53095176,4371.2,4371.1,0.7453]
[1756902152881,1.53095176,4371.2,4371.1,0.5281]
[1756902153188,1.53095176,4371.2,4370.7,1.07465664]
[1756902153189,0.4346,4370.8,4370.7,1.50375664]
[1756902153484,0.6706,4370.8,4370.7,1.81995664]
[1756902153685,0.6706,4370.8,4370.7,2.04882664]
[1756902155888,1.5317084,4370.8,4370.1,0.3162]
[1756902156189,0.862,4370.5,4370.4,0.22887]
[1756902156381,1.4120084,4370.5,4370.4,0.22887]
[1756902156580,1.4120084,4370.5,4370.4,0.3162]
[1756902156782,1.1009084,4370.5,4370.1,0.3162]
[1756902156990,0.862,4370.5,4370.4,0.22887]
[1756902157186,0.3111,4370.4,4370.3,0.2119]
[1756902157386,0.7457,4370.2,4370.1,0.5281]
[1756902157579,1.29524081,4370.2,4370.1,0.5281]
[1756902158280,0.7457,4370.2,4370.1,0.5281]
[1756902160488,0.4346,4370.2,4369.6,1.07465664]
[1756902160676,0.1163,4370.0,4369.6,1.07465664]
[1756902160883,0.7457,4369.8,4369.7,0.5281]
[1756902161190,0.7457,4369.8,4369.7,0.7453]
[1756902161587,0.7457,4369.8,4369.7,0.97417]
[1756902164185,0.7457,4369.8,4369.7,0.75697]
[1756902164385,0.7457,4369.8,4369.7,0.75777]
[1756902165192,0.7457,4369.8,4369.7,0.97717]
[1756902171889,6.04920664,4369.8,4369.1,0.3056]
[1756902172091,1.82035664,4369.8,4369.1,0.3056]
[1756902172283,0.4289,4369.2,4369.1,0.3056]
[1756902172595,0.4289,4369.2,4369.1,0.5183]
[1756902172596,0.7582,4369.2,4369.1,0.5183]
[1756902177595,0.1162,4369.5,4369.1,1.81235664]
[1756902177596,0.3293,4369.5,4369.1,1.81235664]
[1756902177801,0.7582,4369.9,4369.8,0.7377]
[1756902178000,1.50704863,4369.9,4369.8,0.7377]
[1756902179100,0.9592,4369.9,4369.8,0.7377]
[1756902179300,1.50770084,4369.9,4369.8,0.7377]
[1756902180099,1.30670084,4369.9,4369.8,0.7377]
[1756902180297,1.54170084,4369.9,4369.8,0.7377]
[1756902181106,1.54170084,4369.9,4369.1,0.3056]
[1756902181301,0.4289,4369.2,4369.1,0.7377]
[1756902181603,0.235,4369.2,4369.1,1.61795408]
[1756902182704,0.4447,4369.2,4369.1,1.61795408]
[1756902183598,0.9932,4369.2,4369.1,0.5183]
[1756902183902,1.54283524,4369.2,4368.6,0.3056]
[1756902184109,1.30783524,4369.1,4369.0,0.53447]
[1756902184308,1.30783524,4369.1,4369.0,0.5183]
[1756902184804,1.30783524,4369.1,4369.0,0.74717]
[1756902185608,1.30783524,4369.1,4369.0,0.96657]
[1756902185805,0.54963524,4369.1,4369.0,6.19760408]
[1756902186702,0.54963524,4369.1,4369.0,5.96872408]
[1756902187403,0.235,4369.5,4369.4,0.4321]
[1756902187603,0.2097,4369.5,4369.4,0.96657]
[1756902187906,0.99475855,4369.5,4369.4,0.96657]
[1756902189102,1.54325855,4369.5,4369.4,0.74717]
[1756902192608,1.54325855,4369.5,4369.1,0.3058]
[1756902192609,2.53441263,4369.5,4369.1,0.3058]
[1756902192805,0.7401,4368.9,4368.6,0.3058]
[1756902193010,0.7401,4368.7,4368.6,0.5088]
[1756902193212,1.29015855,4368.7,4368.6,0.5088]
[1756902193510,1.29015855,4368.7,4368.6,0.3058]
[1756902193718,1.52515855,4368.7,4368.6,0.5088]
[1756902194414,1.52515855,4368.7,4368.1,0.88025408]
[1756902194609,0.7401,4368.5,4368.4,0.73767]
[1756902194810,1.29015855,4368.5,4368.4,0.73767]
[1756902195114,1.29015855,4368.5,4368.4,0.5088]
[1756902196015,1.29015855,4368.5,4368.4,0.7146]
[1756902197217,1.29015855,4368.5,4368.4,0.5088]
[1756902197414,1.40645855,4368.5,4368.0,0.1252]
[1756902197614,1.40645855,4368.5,4368.3,0.22887]
[1756902197615,1.29015855,4368.4,4368.3,0.22887]
[1756902198017,1.29015855,4368.4,4368.2,0.203]
[1756902198018,0.3137,4368.3,4368.2,0.203]
[1756902198219,1.29015855,4368.3,4368.2,0.5088]
[1756902198519,1.29015855,4368.3,4368.2,0.73767]
[1756902198919,1.29015855,4368.3,4368.2,0.94347]
[1756902199223,0.75705855,4368.3,4368.2,1.82372408]
[1756902202718,0.75705855,4368.3,4368.2,1.59485408]
[1756902202918,0.75705855,4368.3,4368.2,1.82372408]
[1756902209726,0.99205855,4368.3,4368.2,1.82372408]
[1756902212925,0.99205855,4368.3,4368.2,0.94347]
[1756902217026,0.75705855,4368.3,4368.2,0.94347]
[1756902217243,0.99205855,4368.3,4368.2,0.94347]
[1756902218838,0.99205855,4368.3,4368.2,1.82372408]
[1756902226045,0.75705855,4368.3,4368.2,1.82372408]
[1756902226247,0.99205855,4368.3,4368.2,1.82372408]
[1756902227249,0.99205855,4368.3,4368.2,0.94347]
[1756902227250,1.31375855,4368.3,4368.2,0.94347]
[1756902227437,1.52195855,4368.3,4368.2,0.94347]
[1756902230151,0.99205855,4368.3,4368.2,0.94347]
[1756902230351,0.78505855,4368.3,4368.2,0.94347]
[1756902230650,0.99195855,4368.3,4368.2,0.94347]
[1756902232746,0.99195855,4368.3,4368.2,0.7146]
[1756902232948,0.99195855,4368.3,4368.2,0.94347]
[1756902233751,1.31365855,4368.3,4368.2,0.94347]
[1756902237356,0.99195855,4368.3,4368.2,0.94347]
[1756902238057,0.75695855,4368.3,4368.2,0.94347]
[1756902238257,0.99195855,4368.3,4368.2,0.94347]
[1756902238454,0.99195855,4368.3,4368.2,1.17239]
[1756902238455,0.55005855,4368.3,4368.2,1.17239]
[1756902238757,0.235,4368.4,4368.2,1.17239]
[1756902239056,0.235,4368.4,4368.3,42.21016408]
[1756902239255,0.78577581,4368.4,4368.3,42.21012408]
[1756902239455,0.235,4368.4,4368.3,41.98125408]
[1756902239653,0.235,4368.4,4368.3,1.60465408]
[1756902240055,0.3217,4369.2,4368.3,1.60465408]
[1756902240260,0.2069,4368.9,4368.8,0.95327]
[1756902240454,1.28725023,4368.9,4368.1,0.301]
[1756902240654,1.61705408,4368.2,4368.1,0.5082]
[1756902240958,1.61705408,4368.2,4368.1,0.73707]
[1756902240959,2.40250431,4368.2,4368.1,0.73707]
[1756902241159,2.40250431,4368.2,4368.1,0.5082]
[1756902241559,1.52225023,4368.2,4368.1,0.5082]
[1756902241857,1.52225023,4368.2,4368.1,0.7244]
[1756902243457,1.52225023,4368.2,4368.1,0.301]
[1756902244759,5.52225023,4368.2,4367.1,0.301]
[1756902244963,0.7368,4367.2,4367.1,0.301]
[1756902245162,1.52225023,4367.2,4367.1,0.301]
[1756902245363,1.52225023,4367.2,4367.1,0.5082]
[1756902249671,1.28725023,4367.2,4367.1,0.5082]
[1756902249970,1.52225023,4367.2,4367.1,0.5082]
[1756902250966,0.55045023,4367.2,4367.1,5.80025908]
[1756902251171,0.192,4367.2,4367.1,0.4234]
[1756902251366,0.9288,4367.2,4367.1,0.4234]
[1756902251769,0.9288,4367.2,4367.1,0.731]
[1756902258676,0.6071,4367.2,4367.1,0.731]
[1756902259572,0.2069,4367.2,4367.1,0.731]
[1756902259766,0.4419,4367.2,4367.1,0.731]
[1756902260780,0.7339,4367.2,4367.1,0.731]
[1756902261781,0.4419,4367.2,4367.1,0.731]
[1756902261977,0.2069,4367.2,4367.1,0.731]
[1756902262183,0.4369,4367.2,4367.1,0.731]
[1756902262582,0.7289,4367.2,4367.1,0.731]
[1756902262782,0.9327,4367.2,4367.1,0.731]
[1756902263977,0.6407,4367.2,4367.1,0.731]
[1756902264482,0.2069,4367.2,4367.1,0.731]
[1756902264682,0.4419,4367.2,4367.1,0.731]
[1756902265775,0.9377,4367.2,4367.1,0.731]
[1756902266680,0.7027,4367.2,4367.1,0.731]
[1756902266883,0.235,4367.2,4367.1,0.731]
[1756902267184,0.4297,4367.2,4367.1,0.731]
[1756902268376,0.98013471,4367.2,4367.1,0.731]
[1756902269179,0.292,4368.1,4367.1,0.95998]
[1756902269382,1.47598954,4368.0,4367.5,0.1235]
[1756902269683,0.3985,4367.2,4367.1,0.3076]
[1756902269887,0.9255,4367.2,4367.1,0.3076]
[1756902270388,1.47631906,4367.2,4367.1,0.3076]
[1756902272087,1.47631906,4367.2,4367.1,0.5101]
[1756902272489,1.47631906,4367.2,4367.1,0.3076]
[1756902273292,1.47631906,4367.2,4366.6,0.3076]
[1756902273494,1.24131906,4367.1,4367.0,0.22887]
[1756902273884,1.24131906,4367.1,4366.6,0.3076]
[1756902274089,1.76635908,4367.1,4367.0,0.22887]
[1756902274388,2.31831721,4367.1,4367.0,0.53647]
[1756902274581,2.31831721,4367.1,4367.0,0.3076]
[1756902274991,1.24245813,4367.1,4367.0,0.3076]
[1756902277193,1.24245813,4367.1,4367.0,0.5101]
[1756902277392,1.24245813,4367.1,4367.0,0.8262]
[1756902279390,1.47745813,4367.1,4367.0,0.8262]
[1756902279691,1.47745813,4367.1,4367.0,1.05507]
[1756902280086,1.47745813,4367.1,4367.0,0.93157]
[1756902283691,1.47745813,4367.1,4367.0,0.73897]
[1756902283994,0.6919,4366.6,4366.5,0.3193]
[1756902284187,2.55471721,4366.6,4366.0,0.1235]
[1756902284388,1.24385813,4366.5,4366.4,0.75337]
[1756902285388,0.99335813,4366.5,4366.4,0.94777]
[1756902285896,1.47885813,4366.5,4366.4,0.94777]
[1756902286492,1.82417813,4366.5,4365.6,0.3193]
[1756902286683,0.6919,4365.7,4365.6,0.7189]
[1756902286890,0.235,4365.7,4365.6,0.7189]
[1756902287192,1.07585908,4366.4,4365.6,0.3996]
[1756902287390,0.6919,4366.2,4366.1,0.94777]
[1756902287693,1.24315136,4366.2,4366.1,0.94777]
[1756902287889,1.24315136,4366.2,4366.1,0.7189]
[1756902293897,1.47815136,4366.2,4366.1,0.7189]
[1756902296801,1.47815136,4366.2,4366.1,0.5245]
[1756902297302,1.47815136,4366.2,4365.5,0.1235]
[1756902297303,1.47815136,4366.2,4365.6,0.3193]
[1756902297600,1.47815136,4366.2,4366.0,0.54817]
[1756902297601,2.31901044,4366.1,4366.0,0.54817]
[1756902298193,2.31901044,4366.1,4366.0,0.75337]
[1756902298795,2.31901044,4366.1,4365.5,0.1235]
[1756902298996,0.95415136,4366.0,4365.9,0.22887]
[1756902299200,1.24315136,4366.0,4365.9,0.54817]
[1756902299604,1.24315136,4366.0,4365.9,0.75337]
[1756902300301,1.24315136,4366.0,4365.6,0.3193]
[1756902300606,0.2064,4366.0,4365.9,0.7189]
[1756902300802,0.4414,4366.0,4365.9,0.94777]
[1756902301006,0.99750172,4366.0,4365.9,0.94777]
[1756902302204,2.5588608,4366.0,4365.9,0.3193]
[1756902302708,1.48300172,4366.0,4365.9,0.5245]
[1756902303507,2.36477097,4366.0,4365.9,0.5245]
[1756902303914,1.48300172,4366.0,4365.9,0.7189]
[1756902304109,0.76250172,4366.0,4365.9,0.94777]
[1756902304415,1.48200172,4366.0,4365.9,0.94777]
[1756902304715,1.48200172,4366.0,4365.9,0.75337]
[1756902305216,1.48200172,4366.0,4365.9,0.94777]
[1756902311618,1.48200172,4366.0,4365.9,0.75337]
[1756902312019,1.48200172,4366.0,4365.9,0.5245]
[1756902312811,1.48200172,4366.0,4365.9,0.7333]
[1756902313115,1.19300172,4366.0,4365.9,0.7333]
[1756902314607,0.76250172,4366.0,4365.9,0.96217]
[1756902314806,0.55610172,4366.0,4365.9,0.96217]
[1756902315014,0.79010172,4366.0,4365.9,6.07298925]
[1756902316725,0.79010172,4366.0,4365.9,5.84393925]
[1756902318127,0.55766782,4366.0,4365.9,5.75368925]
[1756902318315,0.234,4366.1,4366.0,0.818]
[1756902318515,0.234,4366.2,4366.1,0.7014]
[1756902318715,0.55767913,4366.2,4366.1,1.58316925]
[1756902318914,1.22272885,4367.1,4366.3,0.4006]
[1756902318915,0.234,4366.4,4366.3,0.4006]
[1756902319125,0.79178025,4366.4,4366.3,1.58316925]
[1756902319324,0.79178025,4366.4,4366.3,42.38316925]
[1756902320526,0.79178025,4366.4,4366.3,41.5014]
[1756902321227,0.234,4366.4,4366.3,0.7014]
[1756902323133,0.4268,4366.4,4366.3,0.7014]
[1756902323331,0.9388,4366.4,4366.3,0.4926]
[1756902323528,5.49600844,4366.4,4365.6,0.3008]
[1756902323729,1.58656925,4365.8,4365.7,0.4926]
[1756902323928,1.58656925,4365.8,4365.7,0.3008]
[1756902323929,2.37777769,4365.8,4365.7,0.3008]
[1756902324627,2.37777769,4365.8,4365.7,0.4926]
[1756902326626,1.49600844,4365.8,4365.7,0.4926]
[1756902328835,1.49600844,4365.8,4365.0,0.99836925]
[1756902328836,1.49600844,4365.8,4365.1,1.18256925]
[1756902329133,1.26200844,4365.7,4365.6,0.72147]
[1756902329634,1.26200844,4365.7,4365.6,0.7014]
[1756902332433,0.94610844,4365.7,4365.6,0.7014]
[1756902333635,1.26200844,4365.7,4365.6,0.7014]
[1756902334936,1.49600844,4365.7,4365.6,0.7014]
[1756902337537,1.49600844,4365.7,4365.6,0.4926]
[1756902342948,0.98400844,4365.7,4365.6,0.7048]
[1756902343746,1.27560844,4365.7,4365.6,0.7048]
[1756902344247,0.79120844,4365.7,4365.6,1.58656925]
[1756902344448,0.234,4365.7,4365.6,1.58656925]
[1756902345145,0.4368,4365.7,4365.6,1.58656925]
[1756902348340,0.2028,4365.7,4365.6,1.58656925]
[1756902348542,0.4368,4365.7,4365.6,0.7048]
[1756902349050,0.99429945,4365.7,4365.6,0.7048]
[1756902352446,1.28589945,4365.7,4365.6,0.7048]
[1756902352643,0.99429945,4365.7,4365.6,0.7048]
[1756902355959,1.28589945,4365.7,4365.6,0.7048]
[1756902356353,1.47999945,4365.7,4365.6,0.7048]
[1756902361365,1.47999945,4365.7,4365.6,0.22887]
[1756902361565,0.6188,4365.5,4365.4,0.88176925]
[1756902361767,1.37039945,4365.5,4365.4,0.88176925]
[1756902361964,1.37039945,4365.5,4365.4,1.11063925]
[1756902362569,0.234,4365.6,4365.4,5.11063925]
[1756902362862,0.416,4365.5,4365.4,0.88176925]
[1756902363363,0.416,4365.5,4365.4,1.33970925]
[1756902363555,0.234,4365.6,4365.4,1.33970925]
[1756902363755,0.5256,4365.6,4365.5,0.22887]
[1756902365564,0.2916,4365.6,4365.5,1.30562529]
[1756902366368,0.4944,4365.6,4365.5,1.30562529]
[1756902366870,0.4944,4365.6,4365.5,0.22887]
[1756902367166,0.4944,4365.6,4365.5,1.30562529]
[1756902368468,0.2916,4365.6,4365.5,1.30562529]
[1756902368669,0.1244,4366.0,4365.5,1.30562529]
[1756902368865,0.2916,4365.8,4365.5,1.07675529]
[1756902369067,0.1244,4366.0,4365.9,0.22887]
[1756902369266,1.17687821,4366.0,4365.9,0.22887]
[1756902369466,0.97407821,4366.0,4365.9,1.30562529]
[1756902371070,1.17687821,4366.0,4365.9,1.30562529]
[1756902371570,1.17685196,4366.0,4365.9,1.30562529]
[1756902372666,1.37095196,4366.0,4365.9,0.22887]
[1756902373463,1.17685196,4366.0,4365.9,0.22887]
[1756902373866,1.38955196,4366.0,4365.9,0.22887]
[1756902374666,1.17685196,4366.0,4365.9,0.22887]
[1756902376268,1.38955196,4366.0,4365.9,0.22887]
[1756902376671,0.8315,4366.0,4365.9,0.22887]
[1756902378872,0.6188,4366.0,4365.9,0.22887]
[1756902379375,0.6188,4366.0,4365.9,41.02887]
[1756902382674,0.416,4366.0,4365.9,40.8]
[1756902383066,0.416,4366.0,4365.9,41.02887]
[1756902388175,0.416,4366.0,4365.9,40.8]
[1756902388376,0.1271,4365.5,4365.3,1.07675529]
[1756902388582,0.3304,4365.4,4365.3,1.07675529]
[1756902388874,0.1271,4365.5,4365.3,41.87675529]
[1756902389080,0.3304,4365.9,4365.4,0.22887]
[1756902389281,0.8943,4366.0,4365.9,1.07675529]
[1756902389786,0.8943,4366.0,4365.3,41.034]
[1756902389992,0.7699,4365.9,4365.8,0.22887]
[1756902390391,0.4395,4365.9,4365.6,1.07675529]
[1756902390596,0.7699,4365.7,4365.6,1.07675529]
[1756902392098,0.7699,4365.4,4365.3,40.8]
[1756902392691,0.7699,4364.9,4364.8,0.234]
[1756902392891,0.4395,4364.9,4364.6,1.07675529]
[1756902393093,0.5572,4364.8,4364.6,1.07675529]
[1756902393290,0.3304,4364.7,4364.6,1.07675529]
[1756902393488,0.5572,4364.7,4364.6,1.07675529]
[1756902393693,0.5572,4364.7,4364.6,41.87675529]